Cogmind - Beta 16.1 @@@ ROGUE MODE // 2026.02.25 @ 23:55:25 Player: Zish Result: Destroyed by G-34 Mercenary with Small Laser Performance ------------- Evolutions (0) 0 Regions Visited (4) 800 Robots Destroyed (47) 235 Value Destroyed (1095) 1095 Prototype IDs (3) 60 Alien Tech Used (0) 0 Bonus (35) 35 TOTAL SCORE: 2225 Bonus ------- Follower Combat Kills 35 Cogmind --------- Core Integrity 0/250 Matter 230/300 Energy 250/250 System Corruption 0% Temperature Cool (12) Movement Treading (320) Ox2 Location -9/Mines Parts ------- > --- POWER (1) -------- Ion Engine > --- PROPULSION (2) --- Light Treads > --- UTILITY (2) ------ High-capacity Storage Unit Improved Targeting Computer > --- WEAPON (2) ------- Grenade Launcher Grenade Launcher > --- INVENTORY (20) --- Makeshift Sensor Array Transport Network Coupler Improved Targeting Computer Makeshift Transmission Jammer Medium Armor Plating Hacking Suite EM Pulse Gun EM Pulse Gun Flail Peak State ------------ > --- POWER ------------ Light Ion Engine > --- PROPULSION ------- Light Treads Light Treads > --- UTILITY ---------- High-capacity Storage Unit Improved Targeting Computer > --- WEAPON ----------- EM Pulse Gun Flail > --- INVENTORY -------- Light Treads Transport Network Coupler Improved Targeting Computer Medium Armor Plating Hacking Suite EM Pulse Gun EM Pulse Gun EM Pulse Gun Grenade Launcher Datajack [Rating: 10] Favorites ----------- Power Ion Engine Engine Ion Engine Propulsion Light Treads Treads Light Treads Utility Improved Targeting Computer Storage High-capacity Storage Unit Processor Improved Targeting Computer Weapon EM Pulse Gun Energy Gun EM Pulse Gun Ballistic Gun Assault Rifle Launcher Grenade Launcher Impact Weapon Flail Special Melee Weapon Datajack Build | -11 -10 -10 -10 -9 ------- Run | Yrd Mat Min Exi Min Slots Evolved . | . . . . . Power . | . . . . . Propulsion . | . . . . . Utility . | . . . . . Weapon . | . . . . . Parts Attached 20 | 6 7 4 1 2 Power 3 | 1 1 1 . . Engine 3 | 1 1 1 . . Core . | . . . . . Reactor . | . . . . . Propulsion 3 | 2 . 1 . . Treads 3 | 2 . 1 . . Leg . | . . . . . Wheel . | . . . . . Hover . | . . . . . Flight . | . . . . . Utility 3 | 1 2 . . . Device . | . . . . . Storage 2 | 1 1 . . . Processor 1 | . 1 . . . Hackware . | . . . . . Protection . | . . . . . Artifact . | . . . . . Weapon 11 | 2 4 2 1 2 Energy Gun 6 | 1 4 1 . . Energy Cannon . | . . . . . Ballistic Gun 1 | 1 . . . . Ballistic Cannon . | . . . . . Launcher 2 | . . . . 2 Special Weapon . | . . . . . Impact Weapon 1 | . . 1 . . Slashing Weapon . | . . . . . Piercing Weapon . | . . . . . Special Melee Weapon 1 | . . . 1 . Unidentified Prototypes 1 | . 1 . . . Parts Lost 10 | . 4 4 . 2 Power 2 | . 1 1 . . Propulsion 2 | . . 2 . . Utility . | . . . . . Weapon 6 | . 3 1 . 2 Highest Loss Streak 2 | . 2 2 . 2 To Critical Strikes . | . . . . . Average Backups 9 | 1 7 9 9 10 Power . | . . . . . Propulsion . | . . . . . Utility 4 | . 3 4 4 6 Weapon 3 | . 2 4 4 4 Tool/Special . | . . . . . Unused Backups 7 | . . . . 7 Power . | . . . . . Propulsion . | . . . . . Utility 6 | . . . . 6 Weapon 1 | . . . . 1 Tool/Special . | . . . . . Average Slot Usage (%) 93 | . 96 96 85 78 Engine 13 | . 13 13 14 14 Treads 22 | . 28 25 14 14 Storage 13 | . 13 14 14 14 Processor 13 | . 13 14 14 14 Energy Gun 20 | . 14 27 17 14 Ballistic Gun 3 | . 10 . . . Impact Weapon 1 | . . . 3 . Special Melee Weapon 2 | . . . 7 7 Peak Build Rating 10 | 6 9 10 9 9 Average Rating 8 | 4 8 8 8 8 On Entrance 6 | . 6 9 8 9 Avg Prop Armor Cover (%) . | . . . . . Naked Turns . | . . . . . Heaviest Build 49 | 14 49 49 49 . Greatest Support 40 | 40 40 40 20 . Greatest Overweight (x) 2 | . 1 2 2 . Average Overweight (x) 1 | . . 1 2 . Largest Inventory Capacity 20 | 8 20 20 20 20 Average Capacity 19 | 7 18 20 20 20 Most Carried 12 | 5 10 12 11 11 Average Carried 9 | 1 7 9 9 10 Final Capacity 20 | 8 20 20 20 20 Final Carried 11 | 1 10 9 11 9 Class Distribution -------------------- 100% | Mutant Dominant Class ---------------- Mutant | -10/Materials Mutant | -10/Mines Mutant | -10/Exiles Mutant | -9/Mines Resources | -11 -10 -10 -10 -9 ----------- Run | Yrd Mat Min Exi Min Matter Collected 556 | 208 308 40 . . Remotely . | . . . . . Salvage Created 1596 | . 968 585 . 43 Parts 91 | . 50 38 . 3 Haulers Intercepted 1 | . 1 . . . Recyclers Shooed 2 | . 2 . . . Parts Field Recycled . | . . . . . Retrieved Matter . | . . . . . Parts Self-Destructed . | . . . . . Prevented . | . . . . . Parts Restored . | . . . . . Kills | -11 -10 -10 -10 -9 ------- Run | Yrd Mat Min Exi Min Combat Hostiles Destroyed 35 | . 20 14 . 1 Guns 33 | . 19 13 . 1 AOE 2 | . 1 1 . . Classes Destroyed 8 | . 7 1 . . Worker 3 | . 2 1 . . Builder 2 | . . 2 . . Hauler 1 | . 1 . . . Recycler 2 | . 2 . . . Operator 1 | . 1 . . . Watcher 2 | . 2 . . . Swarmer 9 | . 6 3 . . Grunt 27 | . 14 11 1 1 Best Kill Streak 6 | . 6 6 . 1 Combat Bots Only 4 | . 3 4 . 1 Max Kills in Single Turn 2 | . 2 2 1 1 Gunslinging 1 | . 1 . . . Exploded 1 | . 1 1 . . Melee . | . . . . . Uniques/NPCs Destroyed . | . . . . . Combat | -11 -10 -10 -10 -9 -------- Run | Yrd Mat Min Exi Min Hostile Shots Fired 132 | . 80 43 . 9 Missed 40 | . 19 19 . 2 Hits 92 | . 61 24 . 7 Projectile 92 | . 61 24 . 7 Damage Taken 1102 | . 720 308 . 74 Core 257 | . 172 53 . 32 Absorbed by Shields . | . . . . . Core Remaining (%) 100 | 100 . . . . Volleys Fired 106 | . 69 30 . 7 Largest 2 | . 2 2 . 2 Hottest 80 | . 80 80 . 60 Shots Fired 199 | . 131 59 . 9 Gun 195 | . 131 59 . 5 Cannon . | . . . . . Launcher 4 | . . . . 4 Special . | . . . . . Kinetic 57 | . 57 . . . Thermal . | . . . . . Explosive 4 | . . . . 4 Electromagnetic 138 | . 74 59 . 5 Robot Hit Streak 15 | . 15 8 . 5 Robot Miss Streak 4 | . 4 2 . 1 Penetration Max . | . . . . . Secondary Targets 3 | . 3 . . . Max Gunslinging Chain 1 | . 1 . . . Shots Hit Robots 148 | . 93 43 5 7 Core Hits 67 | . 41 25 . 1 Critical Kills . | . . . . . Critical Parts Destroyed . | . . . . . Critical Strikes 2 | . 1 1 . . Corrupt 2 | . 1 1 . . Melee Attacks 18 | . . 4 14 . Impact 15 | . . 4 11 . Slashing . | . . . . . Piercing . | . . . . . Sneak Attacks 2 | . . . 2 . Combat Hostiles . | . . . . . Follow-up Attacks . | . . . . . Damage Inflicted 2487 | . 1398 728 198 163 Guns 1905 | . 1264 593 . 48 Cannons . | . . . . . Explosions 384 | . 134 135 . 115 Melee 198 | . . . 198 . Ramming . | . . . . . Kinetic 507 | . 507 . . . Thermal 269 | . 134 135 . . Explosive 115 | . . . . 115 Electromagnetic 1398 | . 757 593 . 48 Impact 198 | . . . 198 . Slashing . | . . . . . Piercing . | . . . . . Highest Corruption . | . . . . . Average Corruption . | . . . . . Corruption Purged . | . . . . . Corruption Blocked . | . . . . . Overload Shots . | . . . . . Overflow Damage 95 | . . 4 89 2 Projectiles . | . . . . . Explosions 6 | . . 4 . 2 Melee 89 | . . . 89 . Knockbacks 2 | . . . 2 . Impact 2 | . . . 2 . Kinetic . | . . . . . Secondary . | . . . . . Self-Inflicted Damage 89 | . 37 52 . . Shots 3 | . 1 2 . . Rammed . | . . . . . Targets Rammed . | . . . . . Kicked . | . . . . . Crushed . | . . . . . Highest Temperature 126 | . 120 126 . 24 Average Temperature 27 | . 23 35 . 11 Received Heat Transfer 474 | . 318 114 . 42 Siege Activations . | . . . . . Martial Activations . | . . . . . Shielding Activations . | . . . . . Robots Disrupted . | . . . . . Combat Hostiles . | . . . . . Robots Corrupted 1 | . . . 1 . Combat Hostiles . | . . . . . Parts Fried 3 | . 1 2 . . Impact Corruptions 2 | . . . 2 . Robots Melted . | . . . . . Combat Hostiles . | . . . . . Parts Melted . | . . . . . Heat Transferred 500 | . 250 250 . . Parts Sabotaged . | . . . . . Parts Stolen . | . . . . . Parts Stripped . | . . . . . Power Chain Reactions 5 | . 3 2 . . Alert | -11 -10 -10 -10 -9 ------- Run | Yrd Mat Min Exi Min Maximum Alert Level 1 | . . 1 . . Low Security (%) 97 | 100 100 94 . 100 Level 1 2 | . . 5 . . Level 2 . | . . . . . Level 3 . | . . . . . Level 4 . | . . . . . Level 5 . | . . . . . High Security . | . . . . . Max Security . | . . . . . Peak Influence 216 | . 152 216 . 50 Initial 21 | . . 21 . . Average 52 | . 55 50 . 26 Influence Increases 1008 | . 590 348 . 70 Destroy 0b10 Robot/C 740 | . 400 300 . 40 Destroy 0b10 Robot/NC 55 | . 40 15 . . Destroy Leader 106 | . 86 10 . 10 Allied During Kill 14 | . . 11 . 3 Successful Hack 5 | . 5 . . . Disable Machine 30 | . 30 . . . Destroy Structure 43 | . 14 12 . 17 Lose Combat Pursuer 15 | . 15 . . . Influence Decreases 958 | . 534 226 178 20 Entered New Map 213 | . . 35 178 . Time Decay 635 | . 494 141 . . Lost Part 90 | . 40 30 . 20 Lost Ally 20 | . . 20 . . Squads Dispatched 4 | . 4 . . . Investigation 3 | . 3 . . . Extermination . | . . . . . Reinforcement 1 | . 1 . . . Assault . | . . . . . Garrison . | . . . . . Intercept . | . . . . . Searches Triggered . | . . . . . Construction Impeded . | . . . . . Haulers Reinforced . | . . . . . Active Scanning Responses . | . . . . . Cargo Convoy Interrupts . | . . . . . Stealth | -11 -10 -10 -10 -9 --------- Run | Yrd Mat Min Exi Min Distress Signals 2 | . 2 . . . Communications Jammed . | . . . . . Distress Signals . | . . . . . Times Spotted 51 | . 34 14 . 3 Peak Tracking Total 3 | . 3 2 . 2 Tactical Retreats 1 | . 1 . . . Traps | -11 -10 -10 -10 -9 ------- Run | Yrd Mat Min Exi Min Traps Triggered 2 | . 2 . . . Indirectly . | . . . . . Trap Hack Attempts . | . . . . . Triggered . | . . . . . Disarmed . | . . . . . Reprogrammed . | . . . . . Reused . | . . . . . Traps Extracted . | . . . . . Installed . | . . . . . Triggered . | . . . . . Machines | -11 -10 -10 -10 -9 ---------- Run | Yrd Mat Min Exi Min Machines Disabled 3 | . 2 . 1 . Max in Single Turn 1 | . 1 . 1 . Machines Repaired . | . . . . . Machines Dismantled . | . . . . . Machines Sabotaged . | . . . . . Overloaded Fab Kills . | . . . . . Hacking | -11 -10 -10 -10 -9 --------- Run | Yrd Mat Min Exi Min Machines Accessed 7 | . 4 . 3 . Terminals 4 | . 4 . . . Fabricators . | . . . . . Repair Stations . | . . . . . Recycling Units . | . . . . . Scanalyzers . | . . . . . Garrison Access . | . . . . . Total Hacks 18 | . 7 . 11 . Successful 14 | . 3 . 11 . Failed 4 | . 4 . . . Catastrophic 1 | . 1 . . . Database Lockouts . | . . . . . Manual 4 | . 4 . . . Terminals 7 | . 7 . . . Fabricators . | . . . . . Repair Stations . | . . . . . Recycling Units . | . . . . . Scanalyzers . | . . . . . Garrison Access . | . . . . . Terminal Hacks 13 | . 2 . 11 . Record 11 | . . . 11 . Prototype ID Bank 2 | . 2 . . . Fabricator Hacks . | . . . . . Repair Station Hacks . | . . . . . Recycling Unit Hacks . | . . . . . Scanalyzer . | . . . . . Garrison Access Hacks . | . . . . . Unauthorized Hacks 1 | . 1 . . . Terminals 1 | . 1 . . . Operators 1 | . 1 . . . Fabricators . | . . . . . Repair Stations . | . . . . . Recycling Units . | . . . . . Scanalyzers . | . . . . . Garrison Access . | . . . . . Data Cores Recovered . | . . . . . Used . | . . . . . Hacking Detections 3 | . 3 . . . Full Trace Events 2 | . 2 . . . Feedback Events . | . . . . . Feedback Blocked . | . . . . . Robot Schematics Acquired . | . . . . . Robots Built . | . . . . . Authchips . | . . . . . Time . | . . . . . Total Robot Build Rating . | . . . . . Part Schematics Acquired . | . . . . . Parts Built . | . . . . . Authchips . | . . . . . Time . | . . . . . Total Part Build Rating . | . . . . . Part Studies Acquired . | . . . . . Parts Repaired . | . . . . . Time . | . . . . . Parts Recycled . | . . . . . Recycled Matter . | . . . . . Retrieved Matter . | . . . . . Retrieved Components . | . . . . . Parts Scanalyzed . | . . . . . Part Schematics Acquired . | . . . . . Parts Damaged . | . . . . . Bothacking | -11 -10 -10 -10 -9 ------------ Run | Yrd Mat Min Exi Min Used RIF Installer . | . . . . . Robots Hacked . | . . . . . Non-combat . | . . . . . Combat . | . . . . . Robot Hacks Applied . | . . . . . Relay Couplers Released . | . . . . . Fabnet Peak Effective % . | . . . . . Robots Rewired 1 | . . . 1 . Allies Hacked . | . . . . . Hacks Repelled . | . . . . . Allies | -11 -10 -10 -10 -9 -------- Run | Yrd Mat Min Exi Min Total Allies 5 | . . 4 1 . Largest Group 4 | . . 4 1 1 Highest-Rated Group 71 | . . 71 21 21 Highest-Rated Ally 31 | . . 31 21 21 Total Orders . | . . . . . Ally Attacks 13 | . . 6 . 7 Total Damage 228 | . . 83 . 145 Kills 2 | . . 1 . 1 Allies Corrupted 1 | . . . 1 . Allies Melted . | . . . . . Intel | -11 -10 -10 -10 -9 ------- Run | Yrd Mat Min Exi Min Active Infowar (turns) . | . . . . . Robot Analysis Total . | . . . . . Derelict Logs Recovered 1 | . . 1 . . Drone Launches . | . . . . . Drone Recoveries . | . . . . . Exploration | -11 -10 -10 -10 -9 ------------- Run | Yrd Mat Min Exi Min Turns Passed 5747 | 59 1943 2065 1662 18 Spaces Moved 1805 | 39 755 508 503 . Core 13 | 13 . . . . Treads 1792 | 26 755 508 503 . Legs . | . . . . . Wheels . | . . . . . Hover . | . . . . . Flight . | . . . . . Fastest Speed 50 | 50 160 240 320 . Average Speed 258 | 123 223 260 320 . Slowest Speed 320 | 160 240 320 320 . Overloaded Moves . | . . . . . Propulsion Burnouts . | . . . . . Robots Hopped . | . . . . . Potential Cave-ins 3 | . . . 3 . Cave-ins Triggered . | . . . . . Exploration Rate (%) 54 | 3 84 90 91 6 Regions Visited 4 Branch Regions 3 Pre-discovered Areas . | . . . . . Known Exits Taken . | . . . . . Unknown Exits Taken 4 | 1 1 1 1 . Scrap Searched 1 | . . 1 . . Spaces Dug 4 | . . . 4 . Terrain Destroyed 47 | . 11 12 4 20 Melee 4 | . . . 4 . Projectile . | . . . . . AOE 43 | . 11 12 . 20 Terrain Rammed . | . . . . . Walls Destroyed . | . . . . . Machines Disabled . | . . . . . Actions | -11 -10 -10 -10 -9 --------- Run | Yrd Mat Min Exi Min Total 2667 | 50 878 1190 540 9 Wait 669 | . 29 640 . . Move 1801 | 38 754 507 502 . Hop . | . . . . . Pick Up 20 | 6 10 2 2 . Fast Attach 6 | 1 5 . . . Attach 18 | 5 4 5 2 2 Detach 8 | . 4 2 2 . Swap 1 | . 1 . . . Drop 2 | . 2 . . . Fire 106 | . 69 30 . 7 Melee 18 | . . 4 14 . Ram . | . . . . . Kick . | . . . . . Crush . | . . . . . Escape Stasis . | . . . . . Rewire 18 | . . . 18 . Trap . | . . . . . Miscellaneous . | . . . . . Route ------- -11/Scrapyard -10/Materials (discovered 4 exits: [*Mat x3] / [*Min]) -10/Mines (discovered 4 exits: [*Mat x2] / *Exi / [*Sub]) -10/Exiles (discovered 2 exits: [*Min x2]) -9/Mines History --------- Turn | Location | Event 11 | -11/Scrapyard | Discovered new exit (range 16) 60 | -11/Scrapyard | Entered Materials 250 | -10/Materials | Discovered new exit (range 7) 305 | -10/Materials | Build established: Mutant 614 | -10/Materials | Discovered new exit (range 4) 895 | -10/Materials | Discovered new exit (range 8) 960 | -10/Materials | Derelicts attacked the area 1021 | -10/Materials | Core integrity fell below 50% 1447 | -10/Materials | Discovered new exit (range 12) 2003 | -10/Materials | Entered Mines 2008 | -10/Mines | Assisted by bots powering up and referring to "LRC-V3" 2049 | -10/Mines | Discovered new exit (range 12) 2377 | -10/Mines | Received a Mining Laser from a helpful Derelict 2619 | -10/Mines | Excavation squad dispatched 2619 | -10/Mines | A large section of the Mines collapsed 2869 | -10/Mines | Excavation squad dispatched 3119 | -10/Mines | Excavation squad dispatched 3509 | -10/Mines | Core integrity fell below 20% 3752 | -10/Mines | Discovered new exit (range 10) 3771 | -10/Mines | Discovered new exit (range 10) 3825 | -10/Mines | Learned location of 1 exit from Materials 4052 | -10/Mines | Deemed a non-threat by the Exiles lab entrance 4055 | -10/Mines | Discovered new exit (range 5) 4068 | -10/Mines | Entered Exiles 4068 | -10/Exiles | Found Exiles lab destroyed 4068 | -10/Exiles | Accompanied by 1 ally 4116 | -10/Exiles | Discovered new exit (range 15) 5691 | -10/Exiles | Discovered new exit (range 12) 5730 | -10/Exiles | Entered Mines 5730 | -9/Mines | Accompanied by 1 ally 5748 | -9/Mines | Destroyed by G-34 Mercenary with Small Laser Last Messages --------------- 04904_ Acquired Mak. Transmission Jammer. 05014_ Acquired Mak. Sensor Array. 05344_ Sneak attack on A-02 Transporter. 05344_ A-02 Transporter system offline. 05599_ Connecting with EX-Message Board... >>Record "MSG004964-01" Who left my Assembled plushie in the Analyzer again?! I'm not erasing this message until I get an answer. --BIN 05691_ EXIT=FOUND LOCATION=UNKNOWN GOAL=ESCAPE 05732_ G-34 Mercenary destroyed. 05733_ Slug penetrates L-31 Rogue. 05737_ Commando 1a Carbon-fiber Leg severed. 05738_ Datajack destroyed. 05740_ EM Pulse Gun destroyed. 05741_ L-31 Rogue destroyed. 05742_ Destroyed Ion Engine. 05744_ Slug penetrates Wall. Map ----- +----------------------------------------------------+ | ????????????????????????????????????? | | ????????????????????????????????????? | | ????????????????????????????????????? | | ????????????????????????????????????? | | ????????????????????????????????????? | | ????????????????????????????????????? | | ????????????????????????????????????? | | ????????????????????????????????????? | | ????????????????????????????????????? | | ????????????????????????????????????? | | ????????????????????????????????????? | | ????????????????????????????????????? | | ????????????????????????????????????? | | ????????????????????????????????????? | | ????????????????????????????????????? | | ????????????????????????????????????? | | ?????????###????????????????????????? | | ????????## ###?????????????????????? | | ???????## ###???????????????????? | | ???????# ####????????????????? | | ???????? ?????????????????? | | ????????# #??????????????????? | | ????????# #???????????????????? | | ???????## #????????????????????? | | ??????## h #????????????????????? | | ??????# ! @ #????????????????????? | | ???# %! #????????????????????? | | ???# = #????????????????????? | | ??# #????????????????????? | | ??# g ##????????????????????? | | ??# ####?????????????????????? | | ??# ?????????????????????????? | | ??# ?????????????????????????? | | ??#### # # ?????????????????????????? | | ?????#####??????????????????????????? | | ????????????????????????????????????? | | ????????????????????????????????????? | | ????????????????????????????????????? | | ????????????????????????????????????? | | ????????????????????????????????????? | | ????????????????????????????????????? | | ????????????????????????????????????? | | ????????????????????????????????????? | | ????????????????????????????????????? | | ????????????????????????????????????? | | ????????????????????????????????????? | | | | | | | | | +----------------------------------------------------+ Best States ------------- Heat Dissipation 25 Energy Generation 10 Energy Capacity 250 Matter Stores 300 Matter Capacity 300 Sight Range 16 Terrain Scan Density 10 Evasion (%) 50 Targeting Accuracy 6 Recoil Reduction 2 Item Schematics ----------------- None Robot Schematics ------------------ None Fabricated ------------ Nothing Repaired ---------- Nothing Studied --------- None Alien Tech Used ----------------- None Achievements -------------- A New Friend Challenges ------------ None Game ------ Seed GodDisposableCartridge Manual? 0 Play Time 00:14:17 Cumulative 31.6 hours Start 2026.02.25 @ 23:41:31 End 2026.02.25 @ 23:55:25 Sessions 1 Manual Loads 0 Difficulty Rogue Special Mode None Game No. 86 Rogue 86 Adventurer 0 Explorer 0 Win Type - Total 0 Types 0/0/0/0/0/0/0/0/0/0 Lore% 18 Gallery% 28 Achievement% 22 Wizard Run 0 Options --------- Layout 1 ASCII 0 Keyboard 1 Movement Vi Keybinds 0 Fullscreen 1 Font 24/Smallcaps Map View 50x35 Zoom Use 0% Tactical HUD 1 Map Filters NONE Filters NONE Steam 1 RUN: bb6a70b6-7b29-4145-84b0-21cca9a105b4